bitfinex-derivatives/quotes_BTCF0:USTF0_20241125
["timestamp","ask_amount","ask_price","bid_price","bid_amount"]
[1732526594129,0.209281,98864.0,98863.0,0.09009406]
[1732526594325,0.29964522,98864.0,98863.0,0.09009406]
[1732526595040,0.209281,98864.0,98863.0,0.09009406]
[1732526595340,0.15876,98864.0,98863.0,0.09009406]
[1732526595637,0.46716,98866.0,98863.0,0.39295406]
[1732526595848,0.15876,98868.0,98865.0,0.30286]
[1732526596034,0.209279,98868.0,98865.0,0.14]
[1732526596231,0.05052,98866.0,98865.0,0.14]
[1732526596744,0.15876,98868.0,98865.0,0.14]
[1732526596943,0.050519,98867.0,98865.0,0.14]
[1732526598040,0.09026446,98866.0,98865.0,0.14]
[1732526598336,0.09026446,98866.0,98850.0,0.3608]
[1732526598337,0.30344,98866.0,98850.0,0.3608]
[1732526598537,0.050528,98851.0,98850.0,0.08]
[1732526598730,0.203608,98851.0,98850.0,0.08]
[1732526599040,0.75656,98851.0,98830.0,0.22]
[1732526599239,0.75656,98851.0,98846.0,0.92512]
[1732526599240,0.41133,98847.0,98846.0,0.92512]
[1732526599447,0.46049456,98847.0,98846.0,0.92512]
[1732526599738,1.24461026,98847.0,98846.0,0.70155707]
[1732526599941,2.56401456,98847.0,98846.0,0.70155707]
[1732526600140,2.71713456,98847.0,98846.0,0.70155707]
[1732526600328,2.41361456,98847.0,98846.0,0.70155707]
[1732526600532,2.71713977,98847.0,98846.0,0.70155707]
[1732526600933,0.61361921,98847.0,98846.0,0.70155707]
[1732526601138,0.56445,98847.0,98846.0,0.70155707]
[1732526602144,0.86445,98847.0,98846.0,0.70155707]
[1732526602337,0.91361765,98847.0,98846.0,0.70155707]
[1732526602541,0.61361765,98847.0,98846.0,0.70155707]
[1732526602736,0.91713765,98847.0,98846.0,0.70155707]
[1732526603149,0.61361765,98847.0,98846.0,0.70155707]
[1732526603341,1.21713765,98847.0,98846.0,0.41577397]
[1732526604437,0.91713765,98847.0,98846.0,0.41577397]
[1732526604631,0.61361765,98847.0,98846.0,0.41577397]
[1732526605153,0.56445,98847.0,98846.0,0.41577397]
[1732526605738,0.61361989,98847.0,98846.0,0.41577397]
[1732526606232,0.65472496,98847.0,98846.0,0.41577397]
[1732526606643,0.56445,98847.0,98846.0,0.41577397]
[1732526607043,0.41133,98847.0,98846.0,0.41577397]
[1732526607240,0.86445,98847.0,98846.0,0.06701187]
[1732526607445,0.86445,98847.0,98846.0,8.7e-07]
[1732526607740,1.16797,98847.0,98846.0,8.7e-07]
[1732526608242,0.86797,98847.0,98846.0,8.7e-07]
[1732526608443,0.56445,98847.0,98846.0,8.7e-07]
[1732526608756,0.65471767,98847.0,98846.0,8.7e-07]
[1732526608946,0.56445,98847.0,98846.0,8.7e-07]
[1732526609241,1.16797,98847.0,98846.0,8.7e-07]
[1732526609846,0.050532,98843.0,98842.0,5.7e-07]
[1732526610051,0.864492,98843.0,98842.0,5.7e-07]
[1732526610342,0.050539,98829.0,98828.0,0.0304]
[1732526610546,0.564499,98829.0,98828.0,0.1804]
[1732526611747,0.411339,98829.0,98828.0,0.1804]
[1732526611942,0.564499,98829.0,98828.0,0.48326]
[1732526612646,0.411339,98829.0,98828.0,0.48326]
[1732526612854,0.564499,98829.0,98828.0,0.1804]
[1732526614139,0.61367158,98829.0,98828.0,0.06813448]
[1732526616043,0.79437528,98829.0,98828.0,0.06813448]
[1732526617140,0.79447757,98829.0,98828.0,0.06813448]
[1732526617345,0.79447757,98829.0,98828.0,0.09833448]
[1732526617346,0.61367158,98829.0,98828.0,0.09833448]
[1732526618343,0.46051158,98829.0,98828.0,0.40119448]
[1732526618540,0.08080599,98833.0,98828.0,0.09833448]
[1732526618747,0.050536,98834.0,98828.0,0.09833448]
[1732526618945,0.15316,98833.0,98828.0,0.09833448]
[1732526619145,0.050539,98829.0,98828.0,0.09833448]
[1732526619550,0.050539,98829.0,98828.0,0.40119448]
[1732526620355,0.203699,98829.0,98828.0,0.40119448]
[1732526622464,0.050539,98829.0,98828.0,0.40119448]
[1732526622659,0.203699,98829.0,98828.0,0.40119448]
[1732526623053,0.29423908,98829.0,98828.0,0.40119448]
[1732526624158,0.203699,98829.0,98828.0,0.40119448]
[1732526625857,0.564499,98829.0,98828.0,0.06813448]
[1732526626254,0.71539913,98829.0,98828.0,0.06813448]
[1732526626661,0.564499,98829.0,98828.0,0.06813448]
[1732526633056,0.562779,98829.0,98828.0,0.06813448]
[1732526633462,0.61195522,98829.0,98828.0,0.06813448]
[1732526634054,0.82387585,98829.0,98828.0,0.06813448]
[1732526634664,0.82387603,98829.0,98828.0,0.06813448]
[1732526635061,0.6119554,98829.0,98828.0,0.06813448]
[1732526635561,0.4605154,98829.0,98828.0,0.06813448]
[1732526635764,0.6119554,98829.0,98828.0,0.06813448]
[1732526635965,0.4605154,98829.0,98828.0,0.06813448]
[1732526636165,0.6119554,98829.0,98828.0,0.06813448]
[1732526636854,0.4605154,98829.0,98828.0,0.06813448]
[1732526637158,0.82405609,98829.0,98828.0,0.06813448]
[1732526637352,0.6119554,98829.0,98828.0,0.06813448]
[1732526639682,0.61195632,98829.0,98828.0,0.06813448]
[1732526640570,0.88468541,98829.0,98828.0,0.06813448]
[1732526641069,0.61195632,98829.0,98828.0,0.06813448]
[1732526641460,0.8846701,98829.0,98828.0,0.06813448]
[1732526641764,0.61195632,98829.0,98828.0,0.06813448]
[1732526642965,0.61195595,98829.0,98828.0,0.06813448]
[1732526643469,0.76350952,98829.0,98828.0,0.06813448]
[1732526643670,0.61199595,98829.0,98828.0,0.06813448]
[1732526643870,0.85437309,98829.0,98828.0,0.06813448]
[1732526644072,0.61199595,98829.0,98828.0,0.06813448]
[1732526644872,0.46051595,98829.0,98828.0,0.06813448]
[1732526645063,0.61195595,98829.0,98828.0,0.06813448]
[1732526645668,0.61195595,98829.0,98828.0,0.01823448]
[1732526646013,0.61204421,98829.0,98828.0,0.01823448]
[1732526647376,0.61204421,98829.0,98800.0,0.1]
[1732526647377,0.050549,98809.0,98800.0,0.1]
[1732526647569,0.050553,98801.0,98800.0,0.54286]
[1732526647765,0.09972995,98801.0,98800.0,0.54286]
[1732526647971,0.09972995,98801.0,98783.0,0.03156]
[1732526647972,0.050562,98784.0,98783.0,0.03156]
[1732526648175,0.050562,98784.0,98783.0,8.357e-05]
[1732526648176,0.51228,98784.0,98783.0,8.357e-05]
[1732526648367,0.51228,98784.0,98783.0,0.43294357]
[1732526648368,0.61203197,98784.0,98783.0,0.43294357]
[1732526648875,0.61203197,98784.0,98783.0,0.10261073]
[1732526649072,0.64473197,98784.0,98783.0,0.10261073]
[1732526649771,0.64473197,98784.0,98783.0,0.08430047]
[1732526649973,1.00553197,98784.0,98783.0,0.08430047]
[1732526650871,2.50553197,98784.0,98783.0,0.08430047]
[1732526651073,2.6008863,98784.0,98783.0,0.08430047]
[1732526651382,2.87629383,98784.0,98783.0,0.08430047]
[1732526651674,2.74131499,98784.0,98774.0,0.00011679]
[1732526651866,0.411366,98775.0,98774.0,0.01011679]
[1732526652063,0.46055597,98775.0,98774.0,0.01011679]
[1732526652268,0.46064742,98775.0,98774.0,0.01011679]
[1732526652472,0.76436742,98775.0,98774.0,0.01011679]
[1732526652669,0.050577,98755.0,98754.0,0.02]
[1732526652877,0.61204697,98755.0,98754.0,0.43286]
[1732526653076,0.61204697,98755.0,98754.0,0.13]
[1732526653576,0.61204697,98755.0,98735.0,0.0327]
[1732526653577,0.050583,98743.0,98742.0,9.693e-05]
[1732526653841,0.050583,98743.0,98742.0,0.01009693]
[1732526653842,0.562903,98743.0,98742.0,0.01009693]
[1732526653990,0.61209297,98743.0,98742.0,0.01009693]
[1732526654474,0.61209297,98743.0,98742.0,9.693e-05]
[1732526656372,0.411383,98743.0,98742.0,9.693e-05]
[1732526656577,0.562903,98743.0,98742.0,9.693e-05]
[1732526657456,0.562903,98743.0,98742.0,0.01009693]
[1732526658380,0.561583,98743.0,98742.0,0.31295693]
[1732526658567,0.1502,98743.0,98742.0,0.31295693]
[1732526659076,0.09019163,98750.0,98742.0,0.31295693]
[1732526659267,0.050578,98754.0,98751.0,0.30286]
[1732526659464,0.1502,98753.0,98751.0,0.35286]
[1732526659866,0.1502,98753.0,98751.0,0.05]
[1732526660071,0.1502,98753.0,98752.0,0.30286]
[1732526660272,0.050578,98754.0,98752.0,0.35286]
[1732526660480,0.050578,98754.0,98753.0,0.30286]
[1732526660772,0.050578,98754.0,98753.0,0.36286]
[1732526660773,0.200778,98754.0,98753.0,0.36286]
[1732526661572,0.050578,98754.0,98753.0,0.06]
[1732526661774,0.200778,98754.0,98753.0,0.06]
[1732526664279,0.050578,98754.0,98753.0,0.06]
[1732526664486,0.17869405,98770.0,98753.0,0.36286]
[1732526664674,0.02025288,98771.0,98769.0,0.30286]
[1732526664879,0.02025288,98771.0,98770.0,0.33506]
[1732526665113,0.02025288,98771.0,98770.0,0.39506]
[1732526665114,0.17045288,98771.0,98770.0,0.39506]
[1732526665480,0.02025288,98771.0,98770.0,0.39506]
[1732526665678,0.17045288,98771.0,98770.0,0.39506]
[1732526666293,0.17045288,98771.0,98770.0,0.06]
[1732526666982,0.53125288,98771.0,98770.0,0.06]
[1732526667177,0.53125288,98771.0,98770.0,0.02662648]
[1732526667390,0.83497288,98771.0,98770.0,0.02662648]
[1732526667681,0.86607288,98771.0,98770.0,0.02662648]
[1732526667982,0.91527662,98771.0,98770.0,0.02662648]
[1732526668286,0.91527662,98771.0,98770.0,0.01103154]
[1732526669274,0.050579,98751.0,98750.0,0.1]
[1732526669601,0.12029638,98752.0,98751.0,0.08188477]
[1732526669786,0.24043228,98752.0,98751.0,0.22188477]
[1732526669978,0.1502,98752.0,98751.0,0.22188477]
[1732526670675,0.24043294,98752.0,98751.0,0.22188477]
[1732526670996,0.24044572,98752.0,98751.0,0.22188477]
[1732526671181,0.1502,98752.0,98751.0,0.22188477]
[1732526672488,0.24051532,98752.0,98751.0,0.22188477]
[1732526672680,0.24051529,98752.0,98751.0,0.22188477]
[1732526672875,0.1502,98752.0,98751.0,0.22188477]
[1732526673088,0.0903145,98752.0,98751.0,0.22188477]
[1732526673285,0.02025288,98771.0,98754.0,0.050577]
[1732526673286,0.1502,98757.0,98754.0,0.050577]
[1732526673583,0.050569,98770.0,98755.0,0.050576]
[1732526673790,0.1502,98769.0,98760.0,0.3608]
[1732526673992,0.05057,98768.0,98761.0,0.0301]
[1732526674196,0.05057,98768.0,98761.0,0.1601]
[1732526674488,0.02025288,98771.0,98767.0,0.08188477]
[1732526674786,0.3608,98781.0,98767.0,0.08188477]
[1732526674787,0.12029638,98788.0,98779.0,0.08188477]
[1732526674994,0.27049638,98794.0,98787.0,0.08188477]
[1732526675195,0.1502,98794.0,98793.0,0.08188477]
[1732526675489,0.200757,98794.0,98793.0,0.22188477]
[1732526676131,0.050557,98794.0,98793.0,0.22188477]
[1732526676289,0.200757,98794.0,98793.0,0.22188477]
[1732526676781,0.200757,98794.0,98793.0,0.14]
[1732526676980,0.504437,98794.0,98793.0,0.0901]
[1732526677285,0.55362533,98794.0,98793.0,0.0901]
[1732526677486,0.55362533,98794.0,98768.0,0.0326]
[1732526677487,0.050568,98773.0,98768.0,0.0326]
[1732526677793,0.050569,98771.0,98769.0,0.3608]
[1732526677979,0.1502,98770.0,98769.0,0.4908]
[1732526678180,0.050566,98776.0,98773.0,0.08188477]
[1732526678379,0.1502,98775.0,98773.0,0.22188477]
[1732526678987,0.32160086,98775.0,98773.0,0.22188477]
[1732526679300,0.200767,98775.0,98773.0,0.22188477]
[1732526679679,0.32163668,98775.0,98773.0,0.22188477]
[1732526680080,0.12086968,98774.0,98773.0,0.22188477]
[1732526680589,0.32163668,98775.0,98773.0,0.22188477]
[1732526680981,0.200767,98775.0,98773.0,0.22188477]
[1732526681288,0.32163668,98775.0,98773.0,0.22188477]
[1732526681386,0.200767,98775.0,98773.0,0.22188477]
[1732526682088,0.200767,98775.0,98773.0,0.14]
[1732526682290,0.97964233,98774.0,98773.0,0.14]
[1732526682484,0.97966296,98774.0,98773.0,0.14]
[1732526682684,0.87779882,98774.0,98773.0,0.14]
[1732526682881,0.8286,98774.0,98773.0,0.14]
[1732526683092,0.87779882,98774.0,98773.0,0.14]
[1732526683485,0.8286,98774.0,98773.0,0.14]
[1732526683790,0.8286,98774.0,98773.0,0.22188477]
[1732526684385,0.4678,98774.0,98773.0,0.22188477]
[1732526684994,0.4577,98774.0,98773.0,0.22188477]
[1732526685395,0.6079,98774.0,98773.0,0.22188477]
[1732526685696,0.1502,98774.0,98773.0,0.22188477]
[1732526686483,0.1502,98778.0,98773.0,0.22188477]
[1732526686689,0.1502,98778.0,98777.0,0.44268477]
[1732526687103,0.12087681,98782.0,98777.0,0.44268477]
[1732526687302,0.15172,98781.0,98778.0,0.0315]
[1732526687496,0.050559,98791.0,98778.0,0.1515]
[1732526687497,0.15172,98783.0,98778.0,0.1515]
[1732526687697,0.12087681,98788.0,98778.0,0.1515]
[1732526687698,0.15172,98782.0,98778.0,0.1515]
[1732526687896,0.12087681,98788.0,98787.0,0.08188477]
[1732526688096,0.27259681,98788.0,98787.0,0.23188477]
[1732526688401,0.2009081,98788.0,98787.0,0.23188477]
[1732526688600,0.2514681,98788.0,98787.0,0.23188477]
[1732526690207,0.2009081,98788.0,98787.0,0.23188477]
[1732526691501,0.2009081,98788.0,98787.0,0.15]
[1732526691911,0.2325081,98788.0,98787.0,0.15]
[1732526692122,0.4438435,98788.0,98787.0,0.15]
[1732526692401,0.2325081,98788.0,98787.0,0.15]
[1732526692594,0.5361881,98788.0,98787.0,0.15]
[1732526692998,0.5361881,98788.0,98787.0,0.0502]
[1732526693509,0.80790505,98788.0,98787.0,0.0003]
[1732526694507,0.5361881,98788.0,98787.0,0.0003]
[1732526695300,0.5710604,98788.0,98787.0,0.0003]
[1732526695501,2.0710604,98788.0,98787.0,0.0003]
[1732526695700,2.15861696,98788.0,98787.0,0.0003]
[1732526696107,1.97529696,98788.0,98787.0,0.0003]
[1732526696306,2.0394604,98788.0,98787.0,0.0003]
[1732526697695,1.7357804,98788.0,98787.0,0.0003]
[1732526698194,1.5840604,98788.0,98787.0,0.0003]
[1732526698400,1.7357804,98788.0,98787.0,0.08218477]
[1732526698619,0.2357804,98788.0,98787.0,0.08218477]
[1732526698807,0.1865923,98788.0,98787.0,0.08218477]
[1732526699058,0.15172,98788.0,98787.0,0.08218477]
[1732526699809,0.15172,98788.0,98787.0,0.44298477]
[1732526700810,0.20228,98788.0,98787.0,0.44298477]
[1732526701112,0.35353924,98788.0,98787.0,0.08218477]
[1732526701311,0.25146734,98788.0,98787.0,0.08218477]
[1732526701696,0.20090734,98788.0,98787.0,0.08218477]
[1732526703508,0.20090734,98788.0,98787.0,0.0003]
[1732526703900,0.53518734,98788.0,98787.0,0.0003]
[1732526704207,0.58574734,98788.0,98787.0,0.07]
[1732526704401,0.58574734,98788.0,98787.0,0.0201]
[1732526704599,0.58574734,98788.0,98758.0,0.0322]
[1732526704600,0.83518734,98788.0,98758.0,0.0322]
[1732526704809,0.83518734,98788.0,98767.0,0.12]
[1732526704810,0.41137,98768.0,98767.0,0.12]
[1732526705013,0.61227734,98768.0,98767.0,0.12]
[1732526705212,2.68832008,98768.0,98767.0,0.12]
[1732526705409,2.77770824,98768.0,98767.0,0.12]
[1732526705605,2.61350696,98768.0,98767.0,0.12]
[1732526706609,2.5054255,98768.0,98767.0,0.12]
[1732526707716,2.5356255,98768.0,98767.0,0.12]
[1732526710007,2.5054255,98768.0,98767.0,0.12]
[1732526710409,2.55996621,98768.0,98767.0,0.12]
[1732526711118,2.25620621,98768.0,98767.0,0.20188477]
[1732526711319,2.10448621,98768.0,98767.0,0.20188477]
[1732526711516,2.25620621,98768.0,98767.0,0.20188477]
[1732526711915,2.44744738,98768.0,98767.0,0.20188477]
[1732526712218,2.03367555,98768.0,98767.0,0.20188477]
[1732526712419,2.18539555,98768.0,98767.0,0.20188477]
[1732526713625,2.13620821,98768.0,98767.0,0.20188477]
[1732526713810,2.12610821,98768.0,98767.0,0.20188477]
[1732526714211,0.62610821,98768.0,98767.0,0.20188477]
[1732526714435,0.53672005,98768.0,98767.0,0.20188477]
[1732526714817,0.62610821,98768.0,98767.0,0.20188477]
[1732526715217,0.83767961,98768.0,98767.0,0.20188477]
[1732526715536,0.62610821,98768.0,98767.0,0.20188477]
[1732526717534,0.62610821,98768.0,98767.0,0.12]
[1732526718615,0.53672005,98768.0,98767.0,0.12]
[1732526719526,0.53672005,98768.0,98767.0,0.20188477]
[1732526720225,0.38500005,98768.0,98767.0,0.20188477]
[1732526720519,0.24181117,98795.0,98767.0,0.20188477]
[1732526720520,0.1319059,98771.0,98767.0,0.12]
[1732526720726,0.3608,98787.0,98778.0,0.08188477]
[1732526720727,0.46784,98779.0,98778.0,0.08188477]
[1732526720917,2.11748,98779.0,98778.0,0.23188477]
[1732526721518,0.76868906,98779.0,98778.0,0.23188477]
[1732526721722,0.46784,98779.0,98778.0,0.23188477]
[1732526721913,0.63843615,98779.0,98778.0,0.29478477]
[1732526722428,0.51748,98779.0,98778.0,0.29478477]
[1732526722916,0.36784,98779.0,98778.0,0.29478477]
[1732526723116,0.51748,98779.0,98778.0,0.29478477]
[1732526723712,0.51748,98779.0,98778.0,0.32778477]
[1732526725633,0.63838384,98779.0,98778.0,0.32778477]
[1732526726223,0.51748,98779.0,98778.0,0.32778477]
[1732526726917,0.36784,98779.0,98778.0,0.32778477]
[1732526727125,0.51748,98779.0,98778.0,0.32778477]
[1732526728418,0.14964,98780.0,98778.0,0.37834977]
[1732526728619,0.14964,98780.0,98778.0,0.296465]
[1732526728917,0.13954,98780.0,98779.0,0.08188477]
[1732526729116,0.13954,98780.0,98779.0,0.23188477]
[1732526729330,0.21158621,98791.0,98779.0,0.23188477]
[1732526729512,0.050563,98783.0,98779.0,0.15]
[1732526729719,0.050563,98783.0,98782.0,0.08188477]
[1732526729914,0.14964,98790.0,98782.0,0.23188477]
[1732526730130,0.14964,98790.0,98789.0,0.08188477]
[1732526730332,0.36116279,98790.0,98789.0,0.23188477]
[1732526732331,0.14964,98790.0,98789.0,0.23188477]
[1732526733228,0.13954,98790.0,98789.0,0.23188477]
[1732526734920,0.190099,98790.0,98789.0,0.23188477]
[1732526735119,0.190099,98790.0,98789.0,0.15]
[1732526736017,0.200159,98790.0,98789.0,0.15]
[1732526736421,0.503839,98790.0,98789.0,0.15]
[1732526737231,0.354239,98790.0,98789.0,0.15]
[1732526737426,0.503839,98790.0,98789.0,0.15]
[1732526737726,2.003839,98790.0,98789.0,0.15]
[1732526738325,2.07700309,98790.0,98789.0,0.15]
[1732526738721,2.07700309,98790.0,98789.0,0.1001]
[1732526738920,2.43780309,98790.0,98789.0,0.1001]
[1732526739130,2.43780309,98790.0,98755.0,0.0333]
[1732526739131,2.64932588,98790.0,98755.0,0.0639]
[1732526739328,0.05057,98768.0,98765.0,0.5108]
[1732526739638,0.1496,98767.0,98765.0,0.5108]
[1732526740019,0.1496,98767.0,98766.0,0.08188477]
[1732526740229,0.1496,98767.0,98766.0,0.21188477]
[1732526740433,0.1322,98767.0,98766.0,0.21188477]
[1732526743932,0.1148,98767.0,98766.0,0.21188477]
[1732526744436,0.1001,98767.0,98766.0,0.21188477]
[1732526744737,0.0827,98767.0,98766.0,0.21188477]
[1732526745232,0.05057,98768.0,98766.0,0.21188477]
[1732526745435,0.14964,98767.0,98766.0,0.21188477]
[1732526745730,0.3608,98770.0,98767.0,0.08188477]
[1732526745932,0.3608,98770.0,98769.0,0.08188477]
[1732526746135,0.51044,98770.0,98769.0,0.23188477]
[1732526746328,0.3608,98770.0,98769.0,0.23188477]
[1732526746522,0.50384,98770.0,98769.0,0.23188477]
[1732526747127,0.554409,98770.0,98769.0,0.23188477]
[1732526747834,0.404769,98770.0,98769.0,0.23188477]
[1732526748031,0.549809,98770.0,98769.0,0.23188477]
[1732526748330,0.195609,98770.0,98769.0,0.23188477]
[1732526749033,0.34694046,98770.0,98769.0,0.23188477]
[1732526749539,0.34695687,98770.0,98769.0,0.23188477]
[1732526749737,0.70775687,98770.0,98769.0,0.23188477]
[1732526750736,0.556409,98770.0,98769.0,0.23188477]
[1732526753945,0.556409,98770.0,98769.0,0.15]
[1732526754139,0.891429,98770.0,98769.0,0.15]
[1732526754330,2.391429,98770.0,98769.0,0.15]
[1732526754639,2.46341769,98770.0,98769.0,0.15]
[1732526754832,2.67530471,98770.0,98769.0,0.15]
[1732526755031,2.76341769,98770.0,98749.0,0.03]
[1732526755236,0.050579,98750.0,98749.0,0.06]
[1732526755539,0.195619,98750.0,98749.0,0.06]
[1732526756143,0.37723276,98750.0,98749.0,0.06]
[1732526756340,0.195619,98750.0,98749.0,0.06]
[1732526756845,0.499419,98750.0,98749.0,0.06]
[1732526757637,0.65060753,98750.0,98749.0,0.06]
[1732526757840,0.499419,98750.0,98749.0,0.06]
[1732526758247,1.9995227,98750.0,98749.0,0.06]
[1732526759347,0.050583,98743.0,98742.0,9.693e-05]
[1732526759662,0.879223,98743.0,98742.0,0.01009693]
[1732526760041,0.91291717,98743.0,98742.0,0.01009693]
[1732526760948,0.90281717,98743.0,98742.0,0.01009693]
[1732526761143,0.86233417,98743.0,98742.0,0.01009693]
[1732526761343,0.04,98744.0,98742.0,0.2219817]
[1732526761649,0.17032152,98756.0,98755.0,0.08188477]
[1732526761850,1.5,98759.0,98755.0,0.21188477]
[1732526762042,0.3608,98762.0,98755.0,0.13]
[1732526762043,0.14508,98756.0,98755.0,0.13]
[1732526762240,0.3608,98762.0,98761.0,0.08188477]
[1732526762436,0.50588,98762.0,98761.0,0.21188477]
[1732526762840,0.49578,98762.0,98761.0,0.21188477]
[1732526763268,0.48568,98762.0,98761.0,0.21188477]
[1732526764151,0.14508,98762.0,98761.0,0.21188477]
[1732526764838,0.14508,98762.0,98761.0,0.08188477]
[1732526765037,0.14508,98762.0,98761.0,0.20188477]
[1732526765442,0.29629325,98762.0,98761.0,0.20188477]
[1732526765648,0.13498,98762.0,98761.0,0.20188477]
[1732526765845,0.28619325,98762.0,98761.0,0.20188477]
[1732526766046,0.27609325,98762.0,98761.0,0.20188477]
[1732526766518,0.15121325,98762.0,98761.0,0.20188477]
[1732526766751,0.28619325,98762.0,98761.0,0.20188477]
[1732526767139,0.26879325,98762.0,98761.0,0.20188477]
[1732526767345,0.14508,98762.0,98761.0,0.20188477]
[1732526768654,0.32669376,98762.0,98761.0,0.20188477]
[1732526768850,0.32662472,98762.0,98761.0,0.20188477]
[1732526769044,0.14508,98762.0,98761.0,0.20188477]
[1732526769754,0.050573,98763.0,98761.0,0.20188477]
[1732526769952,0.050573,98763.0,98762.0,0.08188477]
[1732526770254,0.37719772,98763.0,98762.0,0.23188477]
[1732526770848,0.195653,98763.0,98762.0,0.23188477]
[1732526771361,0.195653,98763.0,98762.0,0.15]
[1732526772550,0.14508,98763.0,98762.0,0.23188477]
[1732526774374,0.13498,98763.0,98762.0,0.23188477]
[1732526775063,0.14504,98763.0,98762.0,0.23188477]
[1732526775865,0.3608,98764.0,98762.0,0.23188477]
[1732526776160,0.46784,98765.0,98762.0,0.23188477]
[1732526776161,0.14504,98763.0,98762.0,0.200573]
[1732526776349,0.1210344,98772.0,98765.0,0.050571]
[1732526776350,0.14504,98767.0,98765.0,0.050571]
[1732526776550,0.14504,98767.0,98766.0,0.4553]
[1732526776756,0.4678,98780.0,98770.0,0.050569]
[1732526776757,0.1451355,98771.0,98770.0,0.050569]
[1732526776956,0.1451355,98771.0,98770.0,0.28245377]
[1732526777158,0.1277355,98771.0,98770.0,0.28245377]
[1732526777655,0.5888344,98780.0,98775.0,0.050566]
[1732526777656,0.14284,98777.0,98775.0,0.050566]
[1732526777854,0.14284,98777.0,98775.0,0.180566]
[1732526778069,0.14284,98777.0,98776.0,0.08188477]
[1732526778248,0.14284,98777.0,98776.0,0.21188477]
[1732526779156,0.193405,98777.0,98776.0,0.21188477]
[1732526781757,0.37481338,98777.0,98776.0,0.21188477]
[1732526781956,0.193405,98777.0,98776.0,0.21188477]
[1732526783361,0.176005,98777.0,98776.0,0.21188477]
[1732526783658,0.12544,98777.0,98776.0,0.21188477]
[1732526783852,0.30682267,98777.0,98776.0,0.21188477]
[1732526784761,0.12544,98777.0,98776.0,0.21188477]
[1732526786659,0.30688584,98777.0,98776.0,0.21188477]
[1732526786864,0.12544,98777.0,98776.0,0.21188477]
[1732526789655,0.12544,98777.0,98776.0,0.13]
[1732526789885,0.48624,98777.0,98776.0,0.13]
[1732526790171,0.52104779,98777.0,98776.0,0.01]
[1732526790372,0.050573,98762.0,98756.0,0.01]
[1732526790664,0.05057,98768.0,98767.0,0.08188477]
[1732526790858,0.55417,98768.0,98767.0,0.22188477]
[1732526795968,0.73587879,98768.0,98767.0,0.22188477]
[1732526796175,0.55417,98768.0,98767.0,0.22188477]
[1732526802283,0.55417,98768.0,98767.0,0.14]
[1732526803683,0.41137,98768.0,98767.0,0.14]
[1732526803872,0.55421,98768.0,98767.0,0.14]
[1732526804078,0.14284,98768.0,98767.0,0.22188477]
[1732526804588,0.3608,98769.0,98767.0,0.22188477]
[1732526804799,0.3608,98769.0,98768.0,0.0326]
[1732526805002,0.38104776,98769.0,98768.0,0.1726]
[1732526805187,0.52388776,98769.0,98768.0,0.1726]
[1732526806499,0.38104776,98769.0,98768.0,0.25448477]
[1732526806702,0.52388776,98769.0,98768.0,0.25448477]
[1732526806900,0.3608,98778.0,98768.0,0.25448477]
[1732526807094,0.21189421,98774.0,98769.0,0.033]
[1732526807402,0.3608,98778.0,98769.0,0.153]
[1732526807403,0.21189421,98776.0,98769.0,0.153]
[1732526807593,0.14052,98775.0,98769.0,0.153]
[1732526808004,0.14052,98775.0,98774.0,0.08188477]
[1732526808193,0.14052,98775.0,98774.0,0.22188477]
[1732526808395,0.35241421,98775.0,98774.0,0.22188477]
[1732526808796,0.14052,98775.0,98774.0,0.22188477]
[1732526817498,0.3608,98778.0,98774.0,0.22188477]
[1732526817708,0.3608,98778.0,98777.0,0.08188477]
[1732526817900,0.50132,98778.0,98777.0,0.15]
[1732526818194,0.50132,98778.0,98777.0,0.23188477]
[1732526819204,0.3608,98778.0,98777.0,0.23188477]
[1732526819505,0.50132,98778.0,98777.0,0.23188477]
[1732526820315,0.50637134,98778.0,98777.0,0.23188477]
[1732526821700,0.36585134,98778.0,98777.0,0.23188477]
[1732526822021,0.50637134,98778.0,98777.0,0.23188477]
[1732526822404,0.50637134,98778.0,98777.0,0.15]
[1732526822603,0.77905709,98778.0,98777.0,0.15]
[1732526822907,0.50637134,98778.0,98777.0,0.15]
[1732526823109,0.50637134,98778.0,98777.0,0.02]
[1732526823110,0.86065634,98778.0,98777.0,0.02]
[1732526824009,0.86065634,98778.0,98757.0,0.0303]
[1732526824010,0.81009134,98778.0,98757.0,0.0303]
[1732526824205,0.3608,98759.0,98757.0,0.1703]
[1732526824405,0.14052,98758.0,98757.0,0.1703]
[1732526824704,0.14052,98758.0,98757.0,0.14]
[1732526825510,0.44428,98758.0,98757.0,0.14]
[1732526826308,1.94428,98758.0,98757.0,0.14]
[1732526826906,2.15652594,98758.0,98757.0,0.14]
[1732526827114,1.94428,98758.0,98757.0,0.14]
[1732526829001,0.050583,98743.0,98742.0,9.693e-05]
[1732526829238,1.019743,98743.0,98742.0,0.01009693]
[1732526831624,1.41435679,98743.0,98742.0,0.01009693]
[1732526832108,1.71819679,98743.0,98742.0,9.693e-05]
[1732526832307,1.57767679,98743.0,98742.0,9.693e-05]
[1732526832515,1.71823679,98743.0,98742.0,9.693e-05]
[1732526833609,3.21823679,98743.0,98742.0,9.693e-05]
[1732526834909,3.07767679,98743.0,98742.0,9.693e-05]
[1732526835533,3.21823679,98743.0,98742.0,9.693e-05]
[1732526837217,3.07767679,98743.0,98742.0,9.693e-05]
[1732526837405,3.22103679,98743.0,98742.0,9.693e-05]
[1732526838307,3.17045379,98743.0,98742.0,9.693e-05]
[1732526838709,2.90434521,98743.0,98742.0,9.693e-05]
[1732526838906,2.86661379,98743.0,98742.0,9.693e-05]
[1732526839216,2.86661379,98743.0,98742.0,0.02009693]
[1732526839217,2.72325379,98743.0,98742.0,0.02009693]
[1732526839415,0.050593,98723.0,98722.0,0.01]
[1732526839714,0.3608,98723.0,98722.0,0.13]
[1732526839916,0.50416,98723.0,98722.0,0.21188477]
[1732526841019,0.3608,98723.0,98722.0,0.21188477]
[1732526841225,0.14336,98723.0,98722.0,0.21188477]
[1732526841516,0.3608,98731.0,98722.0,0.21188477]
[1732526841724,0.14336,98730.0,98722.0,0.13]
[1732526842122,0.14336,98730.0,98729.0,0.08188477]
[1732526842325,0.14336,98730.0,98729.0,0.21188477]
[1732526842528,0.3608,98731.0,98729.0,0.21188477]
[1732526842819,0.3608,98731.0,98730.0,0.08188477]